fUSD/lending_fUSD_20240317
["ID","MTS","AMOUNT","RATE_DAILY","PERIOD"]
[319401981,1710717032678,-508.95058488,0.00011811,2]
[319401982,1710717032687,-204.4040776,0.00011811,2]
[319401983,1710717032697,-160.72367697,0.00011811,2]
[319401984,1710717032707,-1851.19190988,0.00011811,2]
[319401985,1710717032716,-155.30236405,0.00011811,2]
[319401986,1710717032726,-170.1430055,0.00011811,2]
[319401987,1710717032735,-22565.6030678,0.00011812,2]
[319401988,1710717032745,-1000.0,0.00011812,2]
[319401989,1710717032754,-298952.77751453,0.00011813,2]
[319401991,1710717032766,-10134.4670585,0.00011813,2]
[319401997,1710717032811,338.05662783,0.00011713,2]
[319402102,1710717033828,2403.25,0.00011395,2]
[319402181,1710717037792,338.05662783,0.00011713,2]
[319402182,1710717037929,232.84,0.00011409,2]
[319402213,1710717038254,-235.95798628,0.00011811,2]
[319402215,1710717038264,-713897.36383496,0.00011813,2]
[319402217,1710717038274,-3940.59397657,0.00011814,2]
[319402219,1710717038283,-484810.13135172,0.00011814,2]
[319402221,1710717038294,-330.67837664,0.00011815,2]
[319402224,1710717038305,-5555.48878402,0.00011816,2]
[319402225,1710717038314,-178.79,0.0001183,2]
[319402227,1710717038324,-178.79,0.00011862,2]
[319402229,1710717038333,-4839.67,0.00011862,2]
[319402231,1710717038343,-5994.61,0.00011862,2]
[319402233,1710717038352,-831.91,0.00011862,2]
[319402235,1710717038361,-691.84,0.00011862,2]
[319402237,1710717038371,-150.99,0.00011862,2]
[319402240,1710717038381,-150.99,0.00011862,2]
[319402242,1710717038390,-178.79,0.00011893,2]
[319402244,1710717038399,-178.79,0.00011925,2]
[319402245,1710717038408,-178.79,0.00011957,2]
[319402248,1710717038418,-499.99,0.00011976,2]
[319402249,1710717038427,-488.8,0.00011976,2]
[319402251,1710717038436,-178.79,0.00011989,2]
[319402253,1710717038445,-166.27,0.00011997,2]
[319402255,1710717038455,-150.99,0.00011997,2]
[319402256,1710717038464,-4280.65,0.00011997,2]
[319402257,1710717038473,-150.99,0.00012,2]
[319402259,1710717038482,-2525.54899292,0.00012,2]
[319402260,1710717038492,-178.27,0.00012,2]
[319402261,1710717038501,-178.79,0.00012021,2]
[319402262,1710717038510,-178.79,0.00012052,2]
[319402263,1710717038520,-178.79,0.00012084,2]
[319402264,1710717038530,-178.79,0.00012116,2]
[319402265,1710717038539,-166.27,0.00012117,2]
[319402266,1710717038549,-178.79,0.00012148,2]
[319402267,1710717038559,-178.79,0.00012179,2]
[319402268,1710717038568,-166.27,0.00012237,2]
[319402269,1710717038577,-155.45642114,0.00012322,2]
[319402270,1710717038587,-197.59547689,0.00012322,2]
[319402271,1710717038596,-972.36907337,0.00012322,2]
[319402272,1710717038605,-155.0,0.00012322,2]
[319402273,1710717038614,-160.0,0.00012322,2]
[319402274,1710717038624,-307.50266702,0.00012322,2]
[319402275,1710717038633,-1051.97760552,0.00012322,2]
[319402276,1710717038643,-276.60587858,0.00012322,2]
[319402278,1710717038652,-2444.87749052,0.00012322,2]
[319402280,1710717038661,-475.24574317,0.00012322,2]
[319402281,1710717038670,-292.53427864,0.00012322,2]
[319402283,1710717038680,-155.0,0.00012322,2]
[319402285,1710717038689,-164.87044309,0.00012323,2]
[319402287,1710717038698,-198.72663122,0.00012323,2]
[319402290,1710717038708,-190.56209382,0.00012323,2]
[319402292,1710717038717,-155.0,0.00012323,2]
[319402294,1710717038726,-3913.47007315,0.00012323,2]
[319402295,1710717038736,-166.27,0.00012357,2]
[319402297,1710717038745,-2766.04006569,0.00012448,2]
[319402298,1710717038754,-166.27,0.00012477,2]
[319402299,1710717038764,-1000.0,0.00012514,2]
[319402300,1710717038774,-163.51,0.00012526,2]
[319402301,1710717038783,-178.27,0.00012548,2]
[319402302,1710717038792,-166.27,0.00012597,2]
[319402303,1710717038803,-808.0,0.00012706,2]
[319402304,1710717038813,-167.54,0.00012706,2]
[319402305,1710717038822,-166.27,0.00012717,2]
[319402306,1710717038831,-718.8533,0.00012771,2]
[319402307,1710717038841,-2716.7572,0.00012771,2]
[319402308,1710717038850,-5332.3288,0.00012771,2]
[319402309,1710717038860,-192.0,0.00012794,2]
[319402310,1710717038871,-510.0,0.00012804,2]
[319402311,1710717038880,-2766.04006565,0.00012811,2]
[319402312,1710717038890,-166.27,0.00012836,2]
[319402313,1710717038901,-2054.0341,0.00012862,2]
[319402314,1710717038910,-6172.9296,0.00012862,2]
[319402315,1710717038919,-397.1259764,0.00012872,2]
[319402316,1710717038929,-1162.57479525,0.00012887,2]
[319402317,1710717038938,-423.79683076,0.00012894,2]
[319402318,1710717038948,-388.97308632,0.00012894,2]
[319402319,1710717038957,-155.0,0.00012894,2]
[319402320,1710717038966,-196871.2537,0.00012897,2]
[319402321,1710717038976,-4952.20105909,0.000129,2]
[319402322,1710717038986,-331.45403008,0.000129,2]
[319402323,1710717038995,-9472.44680092,0.000129,2]
[319402324,1710717039004,-9472.4468009,0.000129,2]
[319402325,1710717039013,-9472.4468009,0.000129,2]
[319402326,1710717039022,-9472.4468009,0.000129,2]
[319402327,1710717039032,-390.74731303,0.00012901,2]
[319402328,1710717039041,-4585.68757001,0.00012901,2]
[319402329,1710717039050,-5020.30537138,0.00012901,2]
[319402330,1710717039060,-331.45402944,0.00012911,2]
[319402331,1710717039069,-331.45402944,0.00012922,2]
[319402332,1710717039080,-331.45402944,0.00012934,2]
[319402333,1710717039089,-331.45402944,0.00012945,2]
[319402334,1710717039099,-331.45402944,0.00012956,2]
[319402335,1710717039108,-9472.4468009,0.00012963,2]
[319402336,1710717039117,-14815.05,0.00012963,2]
[319402337,1710717039127,-331.45402944,0.00012967,2]
[319402338,1710717039137,-331.45402944,0.00012979,2]
[319402339,1710717039145,-331.45402944,0.0001299,2]
[319402340,1710717039154,-210.0,0.0001299,2]
[319402341,1710717039165,-1162.57479525,0.0001299,2]
[319402342,1710717039174,-4952.20105901,0.00012991,2]
[319402343,1710717039185,-199.09152115,0.00012997,2]
[319402344,1710717039195,-244.7251874,0.00012997,2]
[319402345,1710717039204,-155.0,0.00012997,2]
[319402346,1710717039217,-155.0,0.00012997,2]
[319402347,1710717039227,-155.4366584,0.00012997,2]
[319402348,1710717039237,-170.02567313,0.00012997,2]
[319402349,1710717039247,-498.68481426,0.00012997,2]
[319402350,1710717039258,-155.18943374,0.00012997,2]
[319402351,1710717039269,-155.44212634,0.00012997,2]
[319402352,1710717039279,-168.96816735,0.00012997,2]
[319402353,1710717039288,-272.56425418,0.00012997,2]
[319402354,1710717039298,-303.18703235,0.00012997,2]
[319402355,1710717039309,-155.4665216,0.00012997,2]
[319402356,1710717039318,-155.0,0.00012997,2]
[319402357,1710717039326,-155.8865167,0.00012997,2]
[319402358,1710717039335,-361.22596683,0.00012997,2]
[319402359,1710717039345,-202.46413599,0.00012997,2]
[319402360,1710717039354,-174.77432795,0.00012997,2]
[319402361,1710717039363,-2971.50645971,0.00012997,2]
[319402362,1710717039372,-197.64281249,0.00012997,2]
[319402363,1710717039382,-200.13954254,0.00012997,2]
[319402364,1710717039391,-295.76164053,0.00012997,2]
[319402365,1710717039401,-290.4902482,0.00012997,2]
[319402366,1710717039410,-155.0,0.00012997,2]
[319402367,1710717039420,-199.51768165,0.00012997,2]
[319402368,1710717039430,-262.68456776,0.00012997,2]
[319402369,1710717039441,-172.79108969,0.00012997,2]
[319402370,1710717039450,-194.58762539,0.00012997,2]
[319402371,1710717039461,-199.78786339,0.00012997,2]
[319402372,1710717039470,-155.62861415,0.00012997,2]
[319402373,1710717039479,-196.39643895,0.00012997,2]
[319402374,1710717039489,-639.68383275,0.00012997,7]
[319402375,1710717039498,-2290.10217254,0.00012997,2]
[319402376,1710717039508,-524.6597141,0.00012998,2]
[319402377,1710717039517,-1677756.80913024,0.00013,2]
[319402378,1710717039527,-331.45402944,0.00013001,2]
[319402379,1710717039536,-331.45402944,0.00013012,2]
[319402380,1710717039546,-331.45402944,0.00013024,2]
[319402381,1710717039558,-331.45402944,0.00013035,2]
[319402382,1710717039567,-331.45402944,0.00013046,2]
[319402383,1710717039578,-331.45402944,0.00013057,2]
[319402384,1710717039587,-331.45402944,0.00013069,2]
[319402385,1710717039597,-331.45402944,0.0001308,2]
[319402386,1710717039607,-4952.20105901,0.00013082,2]
[319402387,1710717039617,-331.45402944,0.00013091,2]
[319402388,1710717039627,-178.27,0.00013096,2]
[319402389,1710717039637,-331.45402944,0.00013102,2]
[319402390,1710717039646,-1000.0,0.00013104,2]
[319402391,1710717039658,-331.45402944,0.00013113,2]
[319402392,1710717039667,-331.45402944,0.00013125,2]
[319402393,1710717039677,-331.45402944,0.00013136,2]
[319402394,1710717039686,-331.45402944,0.00013147,2]
[319402395,1710717039696,-331.45402944,0.00013158,2]
[319402396,1710717039706,-331.45402944,0.0001317,2]
[319402397,1710717039715,-4952.20105901,0.00013173,2]
[319402398,1710717039724,-2766.04006565,0.00013174,2]
[319402399,1710717039734,-331.45402944,0.00013181,2]
[319402400,1710717039743,-331.45402944,0.00013192,2]
[319402401,1710717039752,-331.45402944,0.00013203,2]
[319402402,1710717039762,-331.45402944,0.00013215,2]
[319402403,1710717039771,-331.45402944,0.00013226,2]
[319402404,1710717039780,-331.45402944,0.00013237,2]
[319402405,1710717039790,-331.45402944,0.00013248,2]
[319402406,1710717039799,-331.45402944,0.0001326,2]
[319402407,1710717039811,-4952.20105901,0.00013264,2]
[319402408,1710717039821,-331.45402944,0.00013271,2]
[319402409,1710717039830,-9472.4468009,0.00013275,2]
[319402410,1710717039839,-331.45402944,0.00013282,2]
[319402411,1710717039849,-331.45402944,0.00013293,2]
[319402412,1710717039858,-500.0,0.00013296,2]
[319402413,1710717039868,-331.45402944,0.00013304,2]
[319402414,1710717039877,-331.45402944,0.00013316,2]
[319402415,1710717039886,-331.45402944,0.00013327,2]
[319402416,1710717039896,-331.45402944,0.00013338,2]
[319402417,1710717039905,-331.45402944,0.00013349,2]
[319402418,1710717039915,-4952.20105901,0.00013355,2]
[319402419,1710717039925,-331.45402944,0.00013361,2]
[319402420,1710717039934,-331.45402944,0.00013372,2]
[319402421,1710717039944,-331.45402944,0.00013383,2]
[319402422,1710717039953,-331.45402944,0.00013394,2]
[319402423,1710717039963,-390.74731302,0.00013401,2]
[319402424,1710717039972,-4585.68757,0.00013401,2]
[319402425,1710717039981,-331.45402944,0.00013406,2]
[319402426,1710717039991,-150.0,0.00013407,2]
[319402428,1710717040000,-331.45402944,0.00013417,2]
[319402429,1710717040009,-150.0,0.00013419,2]
[319402430,1710717040019,-331.45402944,0.00013428,2]
[319402431,1710717040028,-150.0,0.00013432,2]
[319402432,1710717040037,-331.45402944,0.00013439,2]
[319402433,1710717040047,-4952.20105901,0.00013445,2]
[319402435,1710717040058,-331.45402944,0.00013451,2]
[319402436,1710717040067,-300.0,0.00013455,2]
[319402437,1710717040076,-150.0,0.00013455,2]
[319402438,1710717040086,-331.45402944,0.00013462,2]
[319402439,1710717040095,-331.45402944,0.00013473,2]
[319402440,1710717040104,-300.0,0.00013483,2]
[319402441,1710717040114,-150.0,0.00013484,2]
[319402442,1710717040123,-331.45402944,0.00013484,2]
[319402443,1710717040132,-331.45402944,0.00013496,2]
[319402444,1710717040142,-1000.0,0.00013496,2]
[319402445,1710717040152,-535.16255283,0.000135,2]
[319402446,1710717040161,-13587.961552,0.000135,2]
[319402447,1710717040171,-331.45402944,0.00013507,2]
[319402448,1710717040180,-150.0,0.0001351,2]
[319402449,1710717040189,-255.42357259,0.0001351,2]
[319402450,1710717040198,-150.0,0.00013517,2]
[319402451,1710717040207,-331.45402944,0.00013518,2]
[319402452,1710717040217,-150.0,0.00013521,2]
[319402453,1710717040229,-150.0,0.00013528,2]
[319402454,1710717040238,-150.0,0.00013528,2]
[319402455,1710717040248,-331.45402944,0.00013529,2]
[319402456,1710717040258,-150.0,0.0001353,2]
[319402457,1710717040267,-4952.20105901,0.00013536,2]
[319402458,1710717040276,-2766.04006565,0.00013537,2]
[319402459,1710717040286,-331.45402944,0.0001354,2]
[319402460,1710717040296,-331.45402944,0.00013552,2]
[319402461,1710717040310,-152.16100843,0.00013556,2]
[319402462,1710717040319,-150.0,0.00013557,2]
[319402463,1710717040329,-160.79212571,0.00013559,2]
[319402464,1710717040338,-33727.62334926,0.0001356,2]
[319402465,1710717040347,-832.62508,0.0001356,2]
[319402466,1710717040357,-150.0,0.0001356,2]
[319402467,1710717040366,-331.45402944,0.00013563,2]
[319402468,1710717040376,-150.0,0.00013565,2]
[319402469,1710717040385,-331.45402944,0.00013574,2]
[319402470,1710717040395,-150.0,0.00013575,2]
[319402471,1710717040405,-150.0,0.00013576,2]
[319402472,1710717040414,-150.0,0.00013583,2]
[319402473,1710717040423,-331.45402944,0.00013585,2]
[319402474,1710717040433,-5379.9805,0.00013586,2]
[319402475,1710717040443,-9472.4468009,0.00013588,2]
[319402476,1710717040452,-5350.53346211,0.00013594,2]
[319402477,1710717040461,-174.07301397,0.00013594,2]
[319402478,1710717040471,-171.97278319,0.00013594,2]
[319402479,1710717040481,-2071.7102928,0.00013594,2]
[319402480,1710717040490,-2162.89736187,0.00013594,2]
[319402481,1710717040500,-156.30363875,0.00013594,2]
[319402482,1710717040510,-269.88806193,0.00013594,2]
[319402483,1710717040519,-1809.2112,0.00013596,2]
[319402484,1710717040528,-100000.0,0.00013596,2]
[319402485,1710717040538,-245000.0,0.00013596,2]
[319402486,1710717040548,-331.45402944,0.00013597,2]
[319402487,1710717040564,-150.0,0.00013605,2]
[319402488,1710717040574,-331.45402944,0.00013608,2]
[319402489,1710717040585,-150.0,0.00013614,2]
[319402490,1710717040595,-331.45402944,0.00013619,2]
[319402491,1710717040605,-4952.20105901,0.00013627,2]
[319402492,1710717040614,-331.45402944,0.0001363,2]
[319402493,1710717040624,-150.0,0.00013636,2]
[319402494,1710717040635,-331.45402944,0.00013642,2]
[319402495,1710717040645,-178.27,0.00013644,2]
[319402496,1710717040654,-331.45402944,0.00013653,2]
[319402497,1710717040664,-150.0,0.00013656,2]
[319402498,1710717040674,-331.45402944,0.00013664,2]
[319402499,1710717040684,-150.0,0.0001367,2]
[319402500,1710717040694,-150.0,0.00013675,2]
[319402501,1710717040704,-331.45402944,0.00013675,2]
[319402502,1710717040713,-3492.1402755,0.00013686,2]
[319402503,1710717040723,-10548.2920195,0.00013686,2]
[319402504,1710717040732,-911.0989851,0.00013686,2]
[319402505,1710717040742,-293.2944167,0.00013686,2]
[319402506,1710717040751,-131641.6601516,0.00013686,2]
[319402507,1710717040762,-7731.756277,0.00013686,2]
[319402508,1710717040772,-331.45402944,0.00013687,2]
[319402509,1710717040781,-150.01,0.00013695,2]
[319402510,1710717040791,-253.97143956,0.00013695,2]
[319402511,1710717040802,-339.51349377,0.00013695,3]
[319402512,1710717040813,-337.7774134,0.00013695,3]
[319402513,1710717040823,-329.21204278,0.00013695,3]
[319402514,1710717040833,-329.21204278,0.00013695,3]
[319402515,1710717040842,-329.21204278,0.00013695,3]
[319402516,1710717040852,-331.45402944,0.00013698,2]
[319402517,1710717040861,-10000.0,0.00013698,2]
[319402518,1710717040871,-2000.0,0.00013698,2]
[319402519,1710717040880,-200.0,0.00013699,2]
[319402520,1710717040889,-218.857822,0.00013699,2]
[319402521,1710717040898,-151.0,0.00013699,2]
[319402522,1710717040907,-175.03,0.00013699,2]
[319402523,1710717040917,-5000.0,0.00013699,2]
[319402524,1710717040926,-339.46,0.00013699,2]
[319402525,1710717040935,-500.0,0.00013699,2]
[319402526,1710717040944,-250.0,0.00013699,2]
[319402527,1710717040953,-225.448523,0.00013699,2]
[319402528,1710717040962,-225.448523,0.00013699,2]
[319402529,1710717040971,-225.448523,0.00013699,2]
[319402530,1710717040980,-225.448523,0.00013699,2]
[319402531,1710717040990,-225.448523,0.00013699,2]
[319402532,1710717040999,-225.448523,0.00013699,2]
[319402533,1710717041008,-225.448523,0.00013699,2]
[319402534,1710717041017,-225.448523,0.00013699,2]
[319402535,1710717041027,-225.448523,0.00013699,2]
[319402536,1710717041036,-2751.0,0.00013699,2]
[319402537,1710717041049,-200.0,0.00013699,2]
[319402538,1710717041061,-10000.0,0.00013699,2]
[319402539,1710717041069,-210.782635,0.00013699,2]
[319402540,1710717041078,-2668.78,0.00013699,2]
[319402541,1710717041087,-186.67,0.00013699,2]
[319402542,1710717041096,-250.0,0.00013699,2]
[319402543,1710717041105,-150.0,0.00013699,2]
[319402544,1710717041115,-260.49,0.00013699,2]
[319402545,1710717041124,-342.3658008,0.000137,2]
[319402546,1710717041133,-331.45402944,0.00013709,2]
[319402547,1710717041143,-4952.20105901,0.00013718,2]
[319402548,1710717041152,-331.45402944,0.0001372,2]
[319402549,1710717041161,-800.0,0.00013726,2]
[319402550,1710717041171,-331.45402944,0.00013731,2]
[319402551,1710717041180,-331.45402944,0.00013743,2]
[319402552,1710717041189,-331.45402944,0.00013754,2]
[319402553,1710717041199,-331.45402944,0.00013765,2]
[319402554,1710717041208,-331.45402944,0.00013776,2]
[319402555,1710717041224,-800.0,0.00013781,2]
[319402556,1710717041233,-331.45402944,0.00013788,2]
[319402557,1710717041243,-59697.8360934,0.00013797,2]
[319402558,1710717041252,-225.448523,0.00013797,2]
[319402559,1710717041263,-225.448523,0.00013797,2]
[319402560,1710717041272,-331.45402944,0.00013799,2]
[319402561,1710717041281,-1457177.15333346,0.000138,2]
[319402562,1710717041291,-225.448523,0.000138,2]
[319402563,1710717041305,-225.448523,0.000138,2]
[319402564,1710717041315,-4952.20105901,0.00013809,2]
[319402565,1710717041541,-331.45402944,0.0001381,2]
[319402566,1710717041552,-331.45402944,0.00013821,2]
[319402567,1710717041562,-331.45402944,0.00013833,2]
[319402568,1710717041571,-260.49,0.00013836,2]
[319402569,1710717041580,-331.45402944,0.00013844,2]
[319402570,1710717041590,-163.51,0.00013855,2]
[319402571,1710717041599,-331.45402944,0.00013855,2]
[319402572,1710717041609,-331.45402944,0.00013866,2]
[319402573,1710717041618,-331.45402944,0.00013878,2]
[319402574,1710717041628,-331.45402944,0.00013889,2]
[319402575,1710717041637,-225.448523,0.00013889,2]
[319402576,1710717041647,-225.448523,0.00013889,2]
[319402577,1710717041656,-225.448523,0.00013889,2]
[319402578,1710717041665,-225.448523,0.00013889,2]
[319402579,1710717041675,-225.448523,0.00013889,2]
[319402580,1710717041686,-225.44852,0.00013889,2]
[319402581,1710717041696,-59624.54617033,0.00013889,2]
[319402582,1710717041706,-59624.54617026,0.00013889,2]
[319402583,1710717041715,-59624.54617026,0.00013889,2]
[319402584,1710717041725,-59624.54617026,0.00013889,2]
[319402585,1710717041734,-59624.54617026,0.00013889,2]
[319402586,1710717041743,-59624.54617026,0.00013889,2]
[319402587,1710717041752,-59624.54617026,0.00013889,2]
[319402588,1710717041761,-59624.54617026,0.00013889,2]
[319402589,1710717041770,-59624.54617026,0.00013889,2]
[319402590,1710717041779,-58102.28656762,0.00013889,2]
[319402591,1710717041788,-58102.28656757,0.00013889,2]
[319402592,1710717041797,-58102.28656757,0.00013889,2]
[319402593,1710717041810,-58102.28656757,0.00013889,2]
[319402594,1710717041820,-58102.28656757,0.00013889,2]
[319402595,1710717041829,-58102.28656757,0.00013889,2]
[319402596,1710717041838,-58102.28656757,0.00013889,2]
[319402597,1710717041847,-58102.28656757,0.00013889,2]
[319402598,1710717041856,-58102.28656757,0.00013889,2]
[319402599,1710717041866,-4952.20105901,0.000139,2]
[319402600,1710717041874,-331.45402944,0.000139,2]
[319402601,1710717041883,-59624.54617026,0.000139,2]
[319402602,1710717041893,-2766.04006565,0.000139,2]
[319402603,1710717041902,-9472.4468009,0.000139,2]
[319402604,1710717041911,-58102.28656757,0.000139,2]
[319402605,1710717041920,-390.74731302,0.000139,2]
[319402606,1710717041929,-4585.68757,0.000139,2]
[319402607,1710717041938,-512.97,0.00013951,2]
[319402608,1710717041947,-1529.26337417,0.00013956,2]
[319402609,1710717041956,-1321.6497656,0.00013965,2]
[319402610,1710717041965,-10000.0,0.00013972,3]
[319402611,1710717041974,-382.89565188,0.00013972,3]
[319402612,1710717041983,-250.0,0.00013973,2]
[319402613,1710717041992,-260.49,0.00013973,2]
[319402614,1710717042001,-1321.6497656,0.00013986,2]
[319402615,1710717042010,-309.27144388,0.00013989,5]
[319402616,1710717042019,-3813.4343623,0.0001399,2]
[319402617,1710717042027,-4134.7284492,0.0001399,2]
[319402618,1710717042036,-4456.022536,0.0001399,2]
[319402619,1710717042045,-11518.7867834,0.0001399,2]
[319402620,1710717042056,-12489.2815473,0.0001399,2]
[319402621,1710717042065,-13459.7763112,0.0001399,2]
[319402622,1710717042074,-994.9245744,0.0001399,2]
[319402623,1710717042083,-1078.7501637,0.0001399,2]
[319402624,1710717042093,-1162.575753,0.0001399,2]
[319402625,1710717042102,-305.6955428,0.0001399,2]
[319402626,1710717042110,-318.096669,0.0001399,2]
[319402627,1710717042119,-330.4977951,0.0001399,2]
[319402628,1710717042129,-144805.8261668,0.0001399,2]
[319402629,1710717042138,-157969.992182,0.0001399,2]
[319402630,1710717042147,-171134.1581971,0.0001399,2]
[319402631,1710717042156,-8504.9319048,0.0001399,2]
[319402632,1710717042166,-9278.1075325,0.0001399,2]
[319402633,1710717042174,-10051.2831602,0.0001399,2]
[319402634,1710717042184,-369.05740308,0.00013999,5]
[319402635,1710717042193,-309.27144388,0.00013999,5]
[319402636,1710717042202,-309.27144388,0.00013999,5]
[319402637,1710717042212,-309.27144388,0.00013999,5]
[319402638,1710717042222,-309.27144388,0.00013999,5]
[319402639,1710717042232,-309.27144393,0.00013999,5]
[319402640,1710717042241,-309.27144388,0.00013999,5]
[319402641,1710717042250,-339.51349378,0.00013999,5]
[319402642,1710717042260,-337.7774134,0.00013999,5]
[319402643,1710717042269,-337.7774134,0.00013999,5]
[319402644,1710717042278,-329.21204278,0.00013999,5]
[319402645,1710717042287,-329.21204278,0.00013999,5]
[319402646,1710717042296,-329.21204278,0.00013999,5]
[319402647,1710717042309,-329.21204279,0.00013999,5]
[319402648,1710717042318,-329.21204278,0.00013999,5]
[319402649,1710717042327,-329.21204278,0.00013999,5]
[319402650,1710717042336,-329.21204278,0.00013999,5]
[319402651,1710717042345,-218.53914515,0.00014,3]
[319402652,1710717042354,-33944423.1436229,0.00014,2]
[319402653,1710717042371,-11319.23244133,0.00014,2]
[319402654,1710717042383,-282311.43180616,0.00014,2]
[319402655,1710717042392,-35973.60252662,0.00014,2]
[319402656,1710717042401,-832.62508,0.0001408,2]
[319402657,1710717042410,-260.49,0.0001411,2]
[319402658,1710717042419,-5778.56,0.00014162,2]
[319402659,1710717042429,-192.0,0.00014216,2]
[319402660,1710717042438,-510.0,0.00014227,2]
[319402661,1710717042448,-1529.26337417,0.0001424,2]
[319402662,1710717042457,-161.550389,0.00014247,2]
[319402663,1710717042467,-250.16185119,0.00014247,2]
[319402664,1710717042476,-260.49,0.00014247,2]
[319402665,1710717042486,-293.0,0.00014289,2]
[319402666,1710717042496,-808.0,0.00014294,2]
[319402667,1710717042505,-260.49,0.00014384,2]
[319402668,1710717042515,-260.49,0.00014521,2]
[319402669,1710717042524,-260.49,0.00014658,2]
[319402670,1710717042533,-832.62509,0.0001471,2]
[319402671,1710717042543,-5000.0,0.00015,2]
[319402672,1710717042554,-19361.4999371,0.00015,2]
[319402673,1710717042563,-187.2250813,0.00015,2]
[319402674,1710717042573,-3937.78926944,0.00015,2]
[319402675,1710717042582,-1550.0,0.00015,3]
[319402676,1710717042591,-230.15,0.00015068,2]
[319402677,1710717042601,-161.550389,0.00015068,2]
[319402678,1710717042610,-163.51,0.00015184,2]
[319402679,1710717042619,-1465.79299595,0.000152,2]
[319402680,1710717042629,-347385.96853442,0.000152,2]
[319402681,1710717042638,-2500.0,0.00015298,2]
[319402682,1710717042648,-2500.0,0.00015298,2]
[319402683,1710717042657,-832.62508,0.0001533,2]
[319402684,1710717042666,-150.0,0.00015351,2]
[319402685,1710717042676,-212078.23420926,0.000154,5]
[319402686,1710717042685,-12171.09961832,0.00015499,2]
[319402687,1710717042695,-192.0,0.00015638,2]
[319402688,1710717042704,-510.0,0.0001565,2]
[319402689,1710717042713,-411.0,0.00015718,2]
[319402690,1710717042723,-808.0,0.00015883,2]
[319402691,1710717042733,-161.550389,0.0001589,2]
[319402692,1710717042743,-832.62508,0.0001596,2]
[319402693,1710717042753,-49453.6181546,0.00016,2]
[319402694,1710717042762,-344.66273872,0.00016,2]
[319402695,1710717042771,-512.97,0.00016215,2]
[319402696,1710717042780,-200.0,0.00016438,2]
[319402697,1710717042789,-7543.55,0.00016438,2]
[319402698,1710717042799,-1460.48,0.00016438,2]
[319402699,1710717042811,-175.03,0.00016438,2]
[319402700,1710717042821,-1264.0,0.00016471,2]
[319402701,1710717042831,-1250.0,0.00016471,2]
[319402702,1710717042840,-278.0,0.00016471,2]
[319402703,1710717042849,-432.31,0.00016471,2]
[319402704,1710717042859,-603.0,0.00016471,2]
[319402705,1710717042869,-210.0,0.00016473,2]
[319402706,1710717042879,-800.0,0.00016473,2]
[319402707,1710717042889,-1136.0,0.00016473,2]
[319402708,1710717042901,-3000.0,0.00016473,2]
[319402709,1710717042911,-435.0,0.00016473,2]
[319402710,1710717042921,-2419.0,0.00016473,2]
[319402711,1710717042930,-239.043,0.00016473,2]
[319402712,1710717042940,-1458.0,0.00016473,2]
[319402713,1710717042951,-213.0,0.00016473,2]
[319402714,1710717042961,-1623.0,0.00016473,2]
[319402715,1710717042972,-1216.46329409,0.000165,2]
[319402716,1710717042982,-5668.0,0.00016502,2]
[319402717,1710717042991,-4762.0,0.00016502,2]
[319402718,1710717043001,-42878.0,0.00016502,2]
[319402720,1710717043011,-2427.0,0.00016502,2]
[319402722,1710717043021,-1044.0,0.00016502,2]
[319402723,1710717043031,-832.62509,0.0001658,2]
[319402725,1710717043040,-161.550389,0.00016712,2]
[319402726,1710717043050,-5778.56,0.00016902,2]
[319402727,1710717043063,-188.0,0.00016919,2]
[319402728,1710717043073,-206.0,0.00016919,2]
[319402729,1710717043083,-240.497,0.00016919,2]
[319402730,1710717043093,-159.0,0.00016919,2]
[319402731,1710717043103,-159.567,0.00016919,2]
[319402732,1710717043112,-250.0,0.00016919,2]
[319402733,1710717043121,-165.061,0.00016919,2]
[319402734,1710717043131,-250.0,0.00016919,2]
[319402735,1710717043142,-150.361,0.00016939,2]